bitfinex-derivatives/quotes_BNBF0:USTF0_20230901
["timestamp","ask_amount","ask_price","bid_price","bid_amount"]
[1693602505620,0.17226992,213.69,213.3,0.07687083]
[1693602505821,0.17226992,213.68,213.3,0.07687083]
[1693602506020,5.095789,213.73,213.3,0.07687083]
[1693602506021,0.17226992,213.67,213.3,0.07687083]
[1693602506222,0.17226992,213.66,213.3,0.07687083]
[1693602506422,0.17226992,213.65,213.3,0.07687083]
[1693602506617,0.17226992,213.72,213.3,0.07687083]
[1693602506820,0.17226992,213.71,213.3,0.07687083]
[1693602507021,0.17226992,213.72,213.3,0.07687083]
[1693602507220,0.17226992,213.71,213.3,0.07687083]
[1693602507424,0.17226992,213.72,213.3,0.07687083]
[1693602507624,0.17226992,213.71,213.3,0.07687083]
[1693602507826,0.17226992,213.7,213.3,0.07687083]
[1693602508024,0.17226992,213.69,213.3,0.07687083]
[1693602508226,0.17226992,213.72,213.3,0.07687083]
[1693602508425,0.17226992,213.71,213.3,0.07687083]
[1693602508619,5.095789,213.73,213.3,0.07687083]
[1693602508620,0.17226992,213.7,213.3,0.07687083]
[1693602508826,0.17226992,213.69,213.3,0.07687083]
[1693602509028,0.17226992,213.68,213.3,0.07687083]
[1693602509328,0.17226992,213.67,213.3,0.07687083]
[1693602509520,0.17226992,213.72,213.3,0.07687083]
[1693602509725,0.17226992,213.71,213.3,0.07687083]
[1693602510022,0.17226992,213.7,213.3,0.07687083]
[1693602510328,0.17226992,213.69,213.3,0.07687083]
[1693602510630,0.17226992,213.68,213.3,0.07687083]
[1693602510826,0.17226992,213.72,213.31,0.07687083]
[1693602511128,0.17226992,213.71,213.31,0.07687083]
[1693602511328,0.17226992,213.7,213.31,0.07687083]
[1693602511529,0.17226992,213.69,213.31,0.07687083]
[1693602511829,0.17226992,213.68,213.31,0.07687083]
[1693602512028,0.17226992,213.72,213.31,0.07687083]
[1693602512227,0.17226992,213.71,213.31,0.07687083]
[1693602512429,0.17226992,213.73,213.31,0.07687083]
[1693602512728,0.17226992,213.72,213.31,0.07687083]
[1693602512924,0.17226992,213.73,213.31,0.07687083]
[1693602513123,0.17226992,213.72,213.31,0.07687083]
[1693602513327,0.17226992,213.71,213.31,0.07687083]
[1693602513524,0.17226992,213.73,213.31,0.07687083]
[1693602513830,0.17226992,213.72,213.31,0.07687083]
[1693602514028,0.17226992,213.71,213.31,0.07687083]
[1693602514229,0.17226992,213.7,213.31,0.07687083]
[1693602514429,0.17226992,213.73,213.31,0.07687083]
[1693602514627,0.17226992,213.72,213.31,0.07687083]
[1693602514828,0.17226992,213.71,213.31,0.07687083]
[1693602515029,0.17226992,213.7,213.31,0.07687083]
[1693602515231,0.17226992,213.69,213.31,0.07687083]
[1693602515430,0.17226992,213.73,213.31,0.07687083]
[1693602515632,0.17226992,213.72,213.31,0.07687083]
[1693602515833,0.17226992,213.71,213.31,0.07687083]
[1693602516032,0.17226992,213.73,213.31,0.07687083]
[1693602516327,0.17226992,213.72,213.31,0.07687083]
[1693602516533,0.17226992,213.71,213.31,0.07687083]
[1693602516733,0.17226992,213.7,213.31,0.07687083]
[1693602517033,0.17226992,213.69,213.31,0.07687083]
[1693602517334,0.17226992,213.68,213.31,0.07687083]
[1693602517633,0.17226992,213.67,213.31,0.07687083]
[1693602517827,0.17226992,213.66,213.31,0.07687083]
[1693602518033,0.17226992,213.74,213.31,0.07687083]
[1693602518232,0.17226992,213.73,213.31,0.07687083]
[1693602518430,0.17226992,213.72,213.31,0.07687083]
[1693602518633,0.17226992,213.71,213.31,0.07687083]
[1693602518834,0.17226992,213.74,213.31,0.07687083]
[1693602519033,0.17226992,213.73,213.31,0.07687083]
[1693602519229,0.17226992,213.72,213.31,0.07687083]
[1693602519436,0.17226992,213.74,213.31,0.07687083]
[1693602519637,0.17226992,213.73,213.31,0.07687083]
[1693602519837,0.17226992,213.72,213.31,0.07687083]
[1693602520039,0.17226992,213.71,213.31,0.07687083]
[1693602520232,0.17226992,213.74,213.31,0.07687083]
[1693602520434,5.095789,213.75,213.31,0.07687083]
[1693602520435,0.17226992,213.73,213.31,0.07687083]
[1693602520638,0.17226992,213.72,213.31,0.07677237]
[1693602520837,0.17226992,213.74,213.31,0.07677237]
[1693602521137,0.17226992,213.73,213.31,0.07677237]
[1693602521332,0.17226992,213.72,213.31,0.07677237]
[1693602521536,0.17226992,213.74,213.31,0.07677237]
[1693602521730,0.17226992,213.73,213.31,0.07677237]
[1693602521937,0.17226992,213.72,213.31,0.07677237]
[1693602522234,0.17226992,213.71,213.31,0.07677237]
[1693602522429,0.17226992,213.7,213.31,0.07677237]
[1693602522632,0.17226992,213.69,213.31,0.07677237]
[1693602522833,0.17226992,213.68,213.31,0.07677237]
[1693602523030,0.17226992,213.67,213.31,0.07677237]
[1693602523237,0.17226992,213.74,213.31,0.07677237]
[1693602523441,0.17226992,213.73,213.31,0.07677237]
[1693602526440,0.17226992,213.73,213.32,0.07677237]
[1693602527542,5.27099877,213.73,213.32,0.07677237]
[1693602527742,0.17226992,213.72,213.32,0.07677237]
[1693602532745,0.17226992,213.72,213.33,0.07677237]
[1693602538654,0.17226992,213.71,213.33,0.07677237]
[1693602538854,0.17226992,213.73,213.33,0.07677237]
[1693602539054,0.17226992,213.72,213.34,0.07677237]
[1693602539255,5.09872885,213.74,213.34,0.07677237]
[1693602539256,0.17226992,213.73,213.34,0.07677237]
[1693602539456,0.17226992,213.72,213.34,0.07677237]
[1693602539658,0.17226992,213.73,213.34,0.07677237]
[1693602539858,0.17226992,213.72,213.34,0.07677237]
[1693602540056,0.17226992,213.73,213.34,0.07677237]
[1693602540359,0.17226992,213.72,213.34,0.07677237]
[1693602540552,0.17226992,213.71,213.34,0.07677237]
[1693602540754,0.17226992,213.7,213.34,0.07677237]
[1693602540953,0.17226992,213.69,213.34,0.07677237]
[1693602541156,0.17226992,213.68,213.34,0.07677237]
[1693602541357,0.17226992,213.67,213.34,0.07677237]
[1693602541552,0.17226992,213.66,213.34,0.07677237]
[1693602541757,0.17226992,213.65,213.34,0.07677237]
[1693602541957,0.17226992,213.64,213.34,0.07677237]
[1693602542156,5.09872885,213.74,213.34,0.07677237]
[1693602542354,0.17224855,213.73,213.34,0.07677237]
[1693602551960,0.17224855,213.74,213.34,0.07677237]
[1693602552157,0.17224855,213.73,213.34,0.07677237]
[1693602552361,0.17224855,213.72,213.34,0.07677237]
[1693602552562,0.17224855,213.71,213.34,0.07677237]
[1693602552762,0.17224855,213.7,213.34,0.07677237]
[1693602553061,0.17224855,213.69,213.34,0.07677237]
[1693602553262,0.17224855,213.68,213.34,0.07677237]
[1693602553461,0.17224855,213.67,213.34,0.07677237]
[1693602553664,0.17224855,213.73,213.34,0.07677237]
[1693602553857,0.17224855,213.72,213.34,0.07677237]
[1693602554061,0.17224855,213.73,213.39,0.07677237]
[1693602554256,0.17224855,213.72,213.39,0.07677237]
[1693602554460,0.17224855,213.71,213.4,0.07677237]
[1693602554665,0.17224855,213.8,213.4,0.07677237]
[1693602554866,0.17224855,213.79,213.38,0.07677237]
[1693602555163,0.17224855,213.78,213.39,0.86093956]
[1693602555363,12.23694924,213.83,213.39,0.86093956]
[1693602555364,0.17224855,213.82,213.39,0.86093956]
[1693602555565,0.17224855,213.81,213.39,0.86093956]
[1693602555858,0.17224855,213.8,213.39,0.86093956]
[1693602556065,0.17224855,213.83,213.38,0.86093956]
[1693602556366,0.17224855,213.82,213.39,0.86093956]
[1693602556562,0.17224855,213.84,213.39,0.86093956]
[1693602556865,0.17224855,213.83,213.39,0.86093956]
[1693602557166,0.17224855,213.82,213.39,0.86093956]
[1693602557459,0.17224855,213.81,213.4,0.86093956]
[1693602557659,0.17224855,213.8,213.37,0.07677237]
[1693602557863,0.17224855,213.79,213.38,0.86092832]
[1693602558062,0.17224855,213.78,213.38,0.86092832]
[1693602558265,0.17224855,213.77,213.38,0.86092832]
[1693602558463,0.17224855,213.86,213.38,0.86092832]
[1693602558665,0.17224855,213.85,213.38,0.86092832]
[1693602558862,0.17224855,213.84,213.38,0.86092832]
[1693602559063,0.17224855,213.83,213.38,0.86092832]
[1693602559266,0.17224855,213.82,213.39,0.86092832]
[1693602559465,0.17224855,213.81,213.4,0.86092832]
[1693602559660,0.17224855,213.8,213.41,0.86092832]
[1693602559864,0.17224855,213.79,213.36,0.07677237]
[1693602560064,0.17224855,213.78,213.37,0.86090755]
[1693602560265,0.17224855,213.77,213.37,0.86090755]
[1693602560469,0.17224855,213.76,213.37,0.86090755]
[1693602560659,0.17224855,213.88,213.37,0.86090755]
[1693602560862,0.17224855,213.87,213.37,0.86090755]
[1693602561064,0.17224855,213.86,213.37,0.86090755]
[1693602561260,0.17224855,213.85,213.37,0.86090755]
[1693602561462,0.17224855,213.84,213.37,0.86090755]
[1693602561662,0.17224855,213.89,213.37,0.86090755]
[1693602561865,0.17224855,213.88,213.37,0.86090755]
[1693602562066,0.17224855,213.9,213.37,0.86090755]
[1693602562266,5.09872885,213.91,213.37,0.86090755]
[1693602562267,0.17224855,213.89,213.37,0.86090755]
[1693602562566,0.17224855,213.88,213.37,0.86090755]
[1693602562762,0.17224855,213.87,213.37,0.86090755]
[1693602562969,0.17224855,213.9,213.37,0.86090755]
[1693602563163,0.17224855,213.89,213.38,0.86090755]
[1693602563369,0.17224855,213.9,213.36,0.86090755]
[1693602563667,5.09872885,213.92,213.37,0.86090755]
[1693602563668,0.17224855,213.89,213.37,0.86090755]
[1693602563867,0.17224855,213.91,213.36,0.86090755]
[1693602564067,0.17224855,213.9,213.36,0.86090755]
[1693602564264,0.17224855,213.92,213.36,0.86090755]
[1693602564466,0.17224855,213.91,213.36,0.86090755]
[1693602564667,0.17224855,213.92,213.36,0.86090755]
[1693602564863,0.17224855,213.91,213.36,0.86090755]
[1693602565068,0.17224855,213.92,213.36,0.86090755]
[1693602565265,0.17224855,213.91,213.36,0.93767992]
[1693602565568,0.17224855,213.91,213.29,0.15354474]
[1693602565569,0.17224855,213.9,213.37,0.93767992]
[1693602565769,0.17224855,213.9,213.38,0.86090755]
[1693602566064,0.17224855,213.89,213.38,0.86090755]
[1693602566271,0.17224855,213.94,213.37,0.86090755]
[1693602566477,0.17224855,213.93,213.38,0.86090755]
[1693602566768,0.17224855,213.92,213.39,0.86090755]
[1693602566969,0.17224855,213.91,213.4,0.86090755]
[1693602567169,0.17224855,213.95,213.37,0.86090755]
[1693602567369,0.17224855,213.94,213.37,0.86090755]
[1693602567570,0.17224855,213.93,213.37,0.86090755]
[1693602567769,0.17224855,213.95,213.37,0.86090755]
[1693602567968,0.17224855,213.94,213.37,0.86090755]
[1693602568171,0.17224855,213.93,213.37,0.86090755]
[1693602568365,0.17224855,213.96,213.37,0.86090755]
[1693602568669,0.17224855,213.95,213.37,0.86090755]
[1693602568867,0.17224855,213.96,213.37,0.93767992]
[1693602569064,0.17224855,213.95,213.38,0.86090755]
[1693602569264,0.17224855,213.94,213.38,0.86090755]
[1693602569464,0.17224855,213.97,213.38,0.86090755]
[1693602569666,0.17224855,213.96,213.38,0.86090755]
[1693602569865,0.17224855,213.97,213.38,0.86090755]
[1693602570066,0.17224855,213.96,213.38,0.86090755]
[1693602570264,0.17224855,213.95,213.38,0.86090755]
[1693602570469,0.17224855,213.97,213.38,0.86090755]
[1693602570668,0.17224855,213.96,213.38,0.86090755]
[1693602570866,0.17224855,213.95,213.38,0.86090755]
[1693602571066,0.17224855,213.94,213.38,0.86090755]
[1693602571266,0.17224855,213.93,213.38,0.86090755]
[1693602571569,0.17224855,213.92,213.38,0.86090755]
[1693602571765,0.17224855,213.91,213.38,0.86090755]
[1693602571972,0.17224855,213.9,213.38,0.86090755]
[1693602572172,0.17224855,213.89,213.38,0.86090755]
[1693602572378,0.17224855,213.88,213.38,0.86090755]
[1693602572678,0.17224855,213.87,213.38,0.86090755]
[1693602572874,0.17224855,213.86,213.38,0.86090755]
[1693602573075,0.17224855,213.85,213.38,0.86090755]
[1693602573279,0.17224855,213.97,213.38,0.86090755]
[1693602573472,0.17224855,213.96,213.38,0.86090755]
[1693602573674,0.17224855,213.95,213.38,0.86090755]
[1693602573876,0.17224855,213.94,213.38,0.93767992]
[1693602574076,0.17224855,213.98,213.39,0.86090755]
[1693602574271,0.17224855,213.97,213.38,0.86090755]
[1693602574577,0.17224855,213.96,213.39,0.86090755]
[1693602574779,0.17224855,213.98,213.39,0.86090755]
[1693602574979,0.17224855,213.97,213.39,0.86090755]
[1693602575180,0.17224855,213.98,213.39,0.86090755]
[1693602575479,0.17224855,213.97,213.39,0.86090755]
[1693602575779,0.17224855,213.96,213.4,0.86090755]
[1693602575979,0.17224855,213.98,213.38,0.86090755]
[1693602576178,0.17224855,213.97,213.41,0.07677237]
[1693602576383,0.17224855,213.96,213.43,0.07677237]
[1693602576579,0.17224855,213.96,213.44,0.86090755]
[1693602576877,13.256695,214.21,213.44,0.86090755]
[1693602576878,0.17224855,213.95,213.45,0.07677237]
[1693602577074,0.17224855,214.13,213.52,0.07677237]
[1693602577377,0.17224855,213.94,213.53,0.86090755]
[1693602577679,0.17224855,213.93,213.53,0.86090755]
[1693602578078,0.17224855,213.92,213.53,0.86090755]
[1693602578381,0.17224855,213.91,213.54,0.86090755]
[1693602578682,0.17224855,213.9,213.55,0.86090755]
[1693602578876,15.29618655,214.19,213.56,0.86090755]
[1693602579082,0.17204755,214.18,213.57,0.86090755]
[1693602579379,0.17204755,214.18,213.58,0.86090755]
[1693602579572,0.17204755,214.18,213.59,0.86090755]
[1693602579773,0.17204755,214.18,213.6,0.86090755]
[1693602579978,0.17204755,214.18,213.52,0.86090755]
[1693602580175,0.17204755,214.21,213.51,0.07677237]
[1693602580372,0.17204755,214.2,213.52,0.86024096]
[1693602580577,0.17204755,214.21,213.52,0.86024096]
[1693602580881,0.17204755,214.2,213.52,0.86024096]
[1693602581085,0.17204755,214.21,213.51,0.86024096]
[1693602581381,0.17204755,214.2,213.52,0.86024096]
[1693602581579,0.17204755,214.19,213.51,0.86024096]
[1693602581775,0.17204755,214.19,213.52,0.86024096]
[1693602581979,0.17204755,214.18,213.51,0.86024096]
[1693602582174,0.17204755,214.24,213.5,0.86024096]
[1693602582380,0.17204755,214.17,213.51,0.86024096]
[1693602582575,0.17204755,214.16,213.5,0.86024096]
[1693602582781,0.17204755,214.15,213.51,0.86024096]
[1693602582977,0.17204755,214.14,213.51,0.86024096]
[1693602583179,0.17204755,214.14,213.45,0.07677237]
[1693602583180,0.17204755,214.13,213.52,0.86024096]
[1693602583376,0.17204755,214.12,213.53,0.86024096]
[1693602583580,0.17204755,214.11,213.54,0.86024096]
[1693602583776,0.17204755,214.1,213.46,0.86024096]
[1693602583982,0.17204755,214.19,213.47,0.86024096]
[1693602584179,0.17204755,214.18,213.45,0.86024096]
[1693602584377,0.17204755,214.17,213.45,0.86024096]
[1693602584578,0.17204755,214.19,213.45,0.86024096]
[1693602584882,0.17204755,214.18,213.45,0.86024096]
[1693602585081,0.17204755,214.19,213.45,0.86024096]
[1693602585277,0.17204755,214.17,213.45,0.86024096]
[1693602585482,0.17204755,214.18,213.45,0.86024096]
[1693602585682,0.17204755,214.16,213.45,0.86024096]
[1693602585878,0.17204755,214.15,213.45,0.86024096]
[1693602586081,0.17204755,214.18,213.45,0.86024096]
[1693602586281,0.17204755,214.17,213.45,0.86024096]
[1693602586482,5.2707764,214.18,213.45,0.86024096]
[1693602586678,0.17204755,214.16,213.45,0.93701333]
[1693602586983,5.09872885,214.18,213.46,0.86024096]
[1693602586984,0.17204755,214.15,213.46,0.86024096]
[1693602587279,0.17204755,214.14,213.46,0.86024096]
[1693602587581,0.17204755,214.13,213.46,0.86024096]
[1693602587782,0.17204755,214.17,213.46,0.86024096]
[1693602587982,5.09872885,214.18,213.46,0.86024096]
[1693602587983,0.17204755,214.16,213.46,0.86024096]
[1693602588183,0.17204755,214.17,213.46,0.86024096]
[1693602588382,0.17204755,214.16,213.46,0.86024096]
[1693602588581,0.17204755,214.17,213.46,0.86024096]
[1693602588786,0.17204755,214.16,213.46,0.93701333]
[1693602589087,0.17204755,214.15,213.47,0.86024096]
[1693602589280,5.09872885,214.16,213.47,0.86024096]
[1693602589483,0.17204755,214.15,213.47,0.86024096]
[1693602591784,0.17204755,214.15,213.47,0.93701333]
[1693602591982,0.17204755,214.15,213.48,0.86024096]
[1693602593788,5.2707764,214.15,213.48,0.86024096]
[1693602593990,0.17204755,214.14,213.48,0.86024096]
[1693602596885,0.17204755,214.14,213.48,0.93701333]
[1693602597088,0.17204755,214.14,213.49,0.86024096]
[1693602597289,0.17204755,214.14,213.5,0.86024096]
[1693602597486,0.17204755,214.14,213.48,0.86024096]
[1693602597691,0.17204755,214.14,213.49,0.86024096]
[1693602598389,5.2707764,214.14,213.49,0.86024096]
[1693602598591,0.17204755,214.13,213.44,0.86024096]
[1693602598891,7.13822039,214.11,213.45,0.86024096]
[1693602599093,0.17204755,214.1,213.46,0.86024096]
[1693602599390,0.17204755,214.1,213.47,0.86024096]
[1693602599693,5.09872885,214.08,213.42,0.07677237]
[1693602599893,0.17204755,214.07,213.43,0.86079284]
[1693602600088,0.17204755,214.07,213.43,0.93756521]
[1693602600291,0.17204755,214.07,213.44,0.86079284]
[1693602600791,0.17204755,214.07,213.45,0.86079284]
[1693602600990,0.17204755,214.07,213.43,0.86079284]
[1693602601193,0.17204755,214.07,213.44,0.86079284]
[1693602601391,0.17204755,214.07,213.43,0.86079284]
[1693602601592,0.17204755,214.07,213.44,0.86079284]
[1693602601792,0.17204755,214.07,213.45,0.86079284]
[1693602601991,5.2707764,214.07,213.46,0.86079284]
[1693602602192,0.17204755,214.06,213.47,0.86079284]
[1693602602391,0.17204755,214.06,213.44,0.86079284]
[1693602602588,0.17204755,214.06,213.45,0.86077873]
[1693602602790,0.17204755,214.06,213.43,0.86077873]
[1693602603094,0.17204755,214.06,213.44,0.86077873]
[1693602606087,5.2707764,214.06,213.44,0.86077873]
[1693602606291,0.17204755,214.05,213.44,0.86077873]
[1693602607791,5.2707764,214.05,213.44,0.86077873]
[1693602607989,0.17204755,214.04,213.44,0.86077873]
[1693602609195,5.2707764,214.04,213.44,0.86077873]
[1693602609394,0.17204755,214.03,213.44,0.86077873]
[1693602609589,0.17204755,214.04,213.44,0.86077873]
[1693602609795,0.17204755,214.03,213.44,0.86077873]
[1693602609995,0.17204755,214.02,213.44,0.86077873]
[1693602610190,0.17204755,214.01,213.44,0.86077873]
[1693602610390,0.17204755,214.0,213.44,0.86077873]
[1693602610593,0.17204755,214.03,213.44,0.86077873]
[1693602610794,0.17204755,214.02,213.44,0.86077873]
[1693602610996,0.17204755,214.01,213.44,0.86077873]
[1693602611197,0.17204755,214.0,213.44,0.86077873]
[1693602611397,0.17204755,214.03,213.44,0.86077873]
[1693602611691,5.2707764,214.02,213.44,0.86077873]
[1693602611898,0.17204755,214.01,213.45,0.86077873]
[1693602612098,0.17204755,214.01,213.43,0.86077873]
[1693602612398,0.17204755,214.01,213.44,0.86077873]
[1693602612594,0.17204755,214.01,213.45,0.86077873]
[1693602612795,0.17204755,214.01,213.46,0.86077873]
[1693602612995,0.17204755,214.01,213.42,0.07677237]
[1693602613198,5.2707764,214.01,213.43,0.86078088]
[1693602613394,0.17204755,214.0,213.43,0.86078088]
[1693602614094,0.17204755,214.0,213.42,0.86078088]
[1693602614298,0.17204755,214.0,213.43,0.86078088]
[1693602614496,0.17204755,214.0,213.44,0.86078088]
[1693602614803,0.17204755,214.0,213.45,0.86078088]
[1693602614997,0.17204755,214.0,213.46,0.86078088]
[1693602615200,0.17204755,214.0,213.47,0.86078088]
[1693602615400,0.17204755,214.0,213.44,0.86078088]
[1693602615599,0.17204755,214.0,213.45,0.86075743]
[1693602615901,5.2707764,214.0,213.46,0.86075743]
[1693602616100,0.17204755,213.99,213.44,0.86075743]
[1693602616298,0.17204755,213.99,213.45,0.86075743]
[1693602616500,0.17204755,213.99,213.46,0.86075743]
[1693602616695,0.17204755,213.99,213.44,0.86075743]
[1693602616901,0.17204755,213.99,213.43,0.07677237]
[1693602616902,0.17204755,213.99,213.45,0.86075743]
[1693602617097,0.17204755,213.99,213.46,0.86075743]
[1693602617298,5.09872885,213.98,213.47,0.86075743]
[1693602617494,0.17204755,213.97,213.45,0.86075743]
[1693602617699,0.17204755,213.97,213.46,0.86077268]
[1693602617903,0.17204755,213.97,213.45,0.86077268]
[1693602618103,0.17204755,213.97,213.46,0.86077268]
[1693602618295,0.17204755,213.97,213.47,0.86077268]
[1693602618499,0.17204755,213.97,213.45,0.86077268]
[1693602619797,5.2707764,213.97,213.45,0.86077268]
[1693602620000,0.17204755,213.96,213.45,0.86077268]
[1693602621997,0.17204755,213.96,213.45,0.93754505]
[1693602622302,0.17204755,213.96,213.46,0.86077268]
[1693602624106,0.17204755,213.96,213.49,0.07677237]
[1693602624302,0.17204755,213.99,213.5,0.86077268]
[1693602624505,0.17204755,213.98,213.5,0.86077268]
[1693602624701,0.17204755,213.97,213.5,0.86077268]
[1693602625007,0.17204755,213.96,213.5,0.86077268]
[1693602625206,0.17204755,213.95,213.5,0.86077268]
[1693602625407,0.17204755,214.0,213.5,0.86077268]
[1693602625706,0.17204755,213.99,213.5,0.86077268]
[1693602625907,0.17204755,214.0,213.5,0.86077268]
[1693602626105,0.17204755,213.99,213.5,0.86077268]
[1693602626301,0.17204755,213.98,213.5,0.86077268]
[1693602626499,0.17204755,213.97,213.5,0.86077268]
[1693602626705,0.17204755,213.96,213.5,0.86077268]
[1693602626899,0.17204755,213.95,213.5,0.93754505]
[1693602627104,0.17204755,213.94,213.51,0.86077268]
[1693602627409,0.17204755,213.93,213.51,0.86077268]
[1693602627601,0.17204755,213.92,213.51,0.86077268]
[1693602627805,0.17204755,214.0,213.51,0.86077268]
[1693602628107,5.2707764,214.0,213.51,0.86077268]
[1693602628307,7.13822039,214.03,213.51,0.86077268]
[1693602628308,0.17204755,213.99,213.51,0.86077268]
[1693602628507,0.17204755,213.98,213.51,0.86077268]
[1693602628702,5.2707764,214.0,213.51,0.86077268]
[1693602628903,0.17204755,213.99,213.51,0.86077268]
[1693602631110,0.17204755,213.99,213.5,0.07677237]
[1693602631305,0.17204755,213.99,213.51,0.86055467]
[1693602632910,5.2707764,213.99,213.5,0.07677237]
[1693602633109,0.17204755,213.98,213.51,0.86055456]
[1693602634008,0.17204755,213.98,213.49,0.07677237]
[1693602634316,0.17204755,213.98,213.5,0.86055451]
[1693602634617,0.17204755,213.97,213.5,0.86055451]
[1693602634914,0.17204755,213.96,213.5,0.86055451]
[1693602635111,0.17204755,213.95,213.5,0.86055451]
[1693602635311,0.17204755,213.99,213.5,0.86055451]
[1693602635508,0.17204755,213.98,213.5,0.86055451]
[1693602635710,0.17204755,213.99,213.5,0.86055451]
[1693602635911,0.17204755,213.98,213.5,0.86055451]
[1693602636111,0.17204755,213.99,213.5,0.86055451]
[1693602636315,0.17204755,213.98,213.5,0.86055451]
[1693602636515,0.17204755,213.97,213.5,0.86055451]
[1693602636711,5.09872885,214.0,213.5,0.86055451]
[1693602636712,0.17204755,213.96,213.5,0.86055451]
[1693602636918,0.17204755,213.95,213.51,0.86055451]
[1693602637216,0.17204755,213.94,213.48,0.07677237]
[1693602637416,0.17204755,213.93,213.49,0.93732093]
[1693602637717,0.17204755,213.92,213.5,0.86054856]
[1693602637915,0.17204755,213.99,213.51,0.86054856]
[1693602638117,0.17204755,213.98,213.49,0.86054856]
[1693602638413,0.17204755,213.97,213.5,0.8605504]
[1693602638616,0.17204755,213.96,213.51,0.8605504]
[1693602638815,0.17204755,213.99,213.49,0.8605504]
[1693602639017,0.17204755,213.98,213.5,0.86055057]
[1693602639218,0.17204755,213.98,213.51,0.86055057]
[1693602639519,0.17204755,213.98,213.48,0.07677237]
[1693602639713,0.17204755,213.98,213.49,0.86054873]
[1693602640819,5.2707764,213.98,213.49,0.86054873]
[1693602641120,5.2707764,213.98,213.47,0.07677237]
[1693602641121,0.17204755,213.97,213.5,0.86054873]
[1693602641319,0.17204755,213.97,213.48,0.86054873]
[1693602641521,0.17204755,213.97,213.49,0.86054873]
[1693602641819,0.17204755,213.97,213.5,0.86054873]
[1693602642013,0.17204755,213.97,213.48,0.86054873]
[1693602642918,0.17204755,213.97,213.49,0.86054873]
[1693602643114,0.17204755,213.97,213.47,0.86054873]
[1693602643319,0.17204755,213.97,213.48,0.86054873]
[1693602643620,5.2707764,213.97,213.49,0.86054873]
[1693602643821,0.17204755,213.96,213.47,0.86054873]
[1693602644020,0.17204755,213.96,213.48,0.86054873]
[1693602644222,0.17204755,213.96,213.49,0.86054873]
[1693602644523,0.17204755,213.96,213.5,0.86054873]
[1693602644713,0.17204755,213.96,213.46,0.07677237]
[1693602644917,0.17204755,213.96,213.47,0.86057923]
[1693602645822,0.17204755,213.96,213.47,0.9373516]
[1693602646023,0.17204755,213.96,213.48,0.86057923]
[1693602647723,5.2707764,213.96,213.48,0.86057923]
[1693602648022,0.17204755,213.95,213.48,0.86057923]
[1693602650723,0.17204755,213.95,213.48,0.9373516]
[1693602650917,0.17204755,213.95,213.49,0.86057923]
[1693602651917,5.2707764,213.95,213.49,0.86057923]
[1693602652122,0.17204755,213.94,213.49,0.86057923]
[1693602654825,5.2707764,213.94,213.49,0.86057923]
[1693602655023,0.17204755,213.93,213.49,0.86057923]
[1693602655825,0.17204755,213.93,213.49,0.9373516]
[1693602656020,0.17204755,213.93,213.44,0.07677237]
[1693602656224,0.17204755,213.93,213.45,0.86080885]
[1693602656419,5.09872885,213.88,213.45,0.86080885]
[1693602656620,0.17204755,213.87,213.45,0.86080885]
[1693602657225,0.17204755,213.88,213.45,0.86080885]
[1693602657429,0.17204755,213.87,213.45,0.86080885]
[1693602657726,0.17204755,213.86,213.45,0.86080885]
[1693602657924,0.17204755,213.85,213.45,0.86080885]
[1693602658122,0.17204755,213.88,213.45,0.86080885]
[1693602658322,0.17204755,213.87,213.45,0.86080885]
[1693602658521,0.17204755,213.86,213.45,0.86080885]
[1693602658725,0.17204755,213.85,213.45,0.86080885]
[1693602659026,0.17204755,213.84,213.45,0.86080885]
[1693602659222,0.17204755,213.83,213.45,0.86080885]
[1693602659427,0.17204755,213.88,213.45,0.86080885]
[1693602659626,0.17204755,213.87,213.45,0.86080885]
[1693602659823,0.17204755,213.86,213.45,0.86080885]
[1693602660026,0.17204755,213.89,213.44,0.86080885]
[1693602660228,0.17204755,213.88,213.45,0.86078931]
[1693602660427,0.17204755,213.87,213.43,0.07677237]
[1693602660628,0.17204755,213.89,213.44,0.86078933]
[1693602660827,0.17204755,213.88,213.44,0.86078933]
[1693602661128,0.17204755,213.87,213.44,0.86078933]
[1693602661328,0.17204755,213.89,213.44,0.86078933]
[1693602661522,0.17204755,213.88,213.44,0.86078933]
[1693602661726,0.17204755,213.87,213.44,0.86078933]
[1693602661927,0.17204755,213.89,213.44,0.86078933]
[1693602662228,5.09872885,213.9,213.44,0.86078933]
[1693602662229,0.17204755,213.88,213.44,0.86078933]
[1693602662527,0.17204755,213.87,213.44,0.86078933]
[1693602662828,0.17204755,213.86,213.44,0.86078933]
[1693602663130,0.17204755,213.85,213.44,0.86078933]
[1693602663325,0.17204755,213.89,213.44,0.86078933]
[1693602663627,0.17204755,213.88,213.44,0.86078933]
[1693602664023,0.17204755,213.87,213.44,0.86078933]
[1693602664227,0.17204755,213.86,213.44,0.86078933]
[1693602664427,5.2707764,213.9,213.44,0.86078933]
[1693602664622,0.17204755,213.89,213.44,0.86078933]
[1693602665020,5.09872885,213.91,213.42,0.07677237]
[1693602665021,0.17204755,213.88,213.45,0.86078933]
[1693602665226,0.17204755,213.87,213.42,0.07677237]
[1693602665425,0.17204755,213.9,213.43,0.86078833]
[1693602665627,0.17204755,213.89,213.43,0.86078833]
[1693602665829,0.17204755,213.9,213.43,0.86078833]
[1693602666127,0.17204755,213.89,213.43,0.86078833]